Cogmind - Beta 11.1 @@@ ROGUE MODE // 2022.05.01 @ 21:13:15 Player: Olga Result: Self-destructed Performance ------------- Evolutions (3) 1500 Regions Visited (5) 1000 Robots Destroyed (3) 15 Value Destroyed (64) 64 Prototype IDs (0) 0 Alien Tech Used (0) 0 Bonus (470) 470 TOTAL SCORE: 3049 Bonus ------- Pacifist 470 Cogmind --------- Core Integrity 617/700 Matter 233/300 Energy 160/160 System Corruption 2% Temperature Cool (0) Movement Flying (26) Location -7/Lower Caves Parts ------- > --- POWER (1) -------- Light Nuclear Core > --- PROPULSION (4) --- VTOL Module VTOL Module VTOL Module Cesium-ion Thruster > --- UTILITY (6) ------ Improved Sensor Array Improved Melee Analysis Suite Phase Shifter Improved Utility Shielding Hacking Suite > --- WEAPON (2) ------- Katana Falx > --- INVENTORY (5) ---- Light Ion Engine Xenon Bombardment Thruster Xenon Bombardment Thruster Phase Shifter Falx Peak State ------------ > --- POWER ------------ Light Nuclear Core > --- PROPULSION ------- VTOL Module VTOL Module VTOL Module Cesium-ion Thruster > --- UTILITY ---------- Improved Sensor Array Improved Melee Analysis Suite Phase Shifter Improved Utility Shielding Hacking Suite > --- WEAPON ----------- Katana Falx > --- INVENTORY -------- Light Ion Engine Xenon Bombardment Thruster Xenon Bombardment Thruster Phase Shifter [Rating: 39] Favorites ----------- Power Ion Engine Engine Ion Engine Power Core Light Nuclear Core Propulsion Xenon Bombardment Thruster Flight Unit Xenon Bombardment Thruster Utility Improved Utility Shielding Device Improved Sensor Array Processor Improved Melee Analysis Suite Hackware Hacking Suite Protection Improved Utility Shielding Weapon Katana Ballistic Gun Assault Rifle Impact Weapon Flail Slashing Weapon Katana Piercing Weapon Makeshift Spear Build | -11 -10 -9 -8 -7 -7 ------- Run | Scr Mat Mat Mat Fac Low Slots Evolved 6 | . . 2 2 2 . Power . | . . . . . . Propulsion 2 | . . . . 2 . Utility 4 | . . 2 2 . . Weapon . | . . . . . . Parts Attached 29 | 1 1 2 6 7 12 Power 3 | . . . 1 1 1 Engine 2 | . . . 1 1 . Core 1 | . . . . . 1 Reactor . | . . . . . . Propulsion 11 | . . 1 3 4 3 Treads . | . . . . . . Leg . | . . . . . . Wheel . | . . . . . . Hover . | . . . . . . Flight 11 | . . 1 3 4 3 Utility 8 | . . . 1 2 5 Device 2 | . . . . . 2 Storage . | . . . . . . Processor 1 | . . . . . 1 Hackware 1 | . . . . . 1 Protection 4 | . . . 1 2 1 Artifact . | . . . . . . Weapon 7 | 1 1 1 1 . 3 Energy Gun . | . . . . . . Energy Cannon . | . . . . . . Ballistic Gun 2 | 1 . 1 . . . Ballistic Cannon . | . . . . . . Launcher . | . . . . . . Special Weapon . | . . . . . . Impact Weapon 1 | . 1 . . . . Slashing Weapon 3 | . . . 1 . 2 Piercing Weapon 1 | . . . . . 1 Special Melee Weapon . | . . . . . . Unidentified Prototypes . | . . . . . . Parts Lost 3 | . . . . 2 1 Power 1 | . . . . 1 . Propulsion 2 | . . . . 1 1 Utility . | . . . . . . Weapon . | . . . . . . Highest Loss Streak 2 | . . . . 2 1 To Critical Strikes . | . . . . . . Average Slot Usage (%) 52 | . 14 13 40 53 80 Engine 3 | . . . 7 5 2 Core 1 | . . . . . 4 Flight 20 | . . 2 13 29 29 Device 3 | . . . . . 10 Processor 1 | . . . . . 5 Hackware 2 | . . . . . 6 Protection 6 | . . . 4 11 7 Ballistic Gun 2 | . 8 . 6 . . Impact Weapon 3 | . 5 11 8 . . Slashing Weapon 5 | . . . . 4 10 Naked Turns . | . . . . . . Heaviest Build 23 | 2 2 4 11 23 23 Greatest Support 24 | 3 3 4 10 24 23 Greatest Overweight (x) 3 | . . . 3 . . Average Overweight (x) . | . . . . . . Largest Inventory Capacity 5 | 5 5 5 5 5 5 Average Capacity 5 | 5 5 5 5 5 5 Most Carried 5 | 5 5 5 5 5 5 Average Carried 4 | 5 5 4 4 3 4 Final Capacity 5 | 5 5 5 5 5 5 Final Carried 5 | 5 5 3 5 5 5 Class Distribution -------------------- 70% | Sprinter 29% | Mutant Dominant Class ---------------- Mutant | -10/Materials Mutant | -9/Materials Mutant | -8/Materials Sprinter | -7/Factory Sprinter | -7/Lower Caves Resources | -11 -10 -9 -8 -7 -7 ----------- Run | Scr Mat Mat Mat Fac Low Matter Collected 417 | 195 . . 13 107 102 Remotely . | . . . . . . Salvage Created 56 | . . . 13 . 43 Parts 7 | . . . 2 . 5 Haulers Intercepted . | . . . . . . Recyclers Shooed . | . . . . . . Parts Field Recycled . | . . . . . . Retrieved Matter . | . . . . . . Parts Self-Destructed 3 | . . . . . 3 Prevented . | . . . . . . Kills | -11 -10 -9 -8 -7 -7 ------- Run | Scr Mat Mat Mat Fac Low Combat Hostiles Destroyed 3 | . . . 1 . 2 Melee 2 | . . . . . 2 Guns 1 | . . . 1 . . Classes Destroyed 1 | . . . 1 . . Swarmer 3 | . . . 1 . 2 Best Kill Streak 1 | . . . 1 . 1 Combat Bots Only 1 | . . . 1 . 1 Max Kills in Single Turn 1 | . . . 1 . 1 Gunslinging . | . . . . . . Exploded . | . . . . . . Melee 1 | . . . . . 1 Uniques/NPCs Destroyed . | . . . . . . Combat | -11 -10 -9 -8 -7 -7 -------- Run | Scr Mat Mat Mat Fac Low Damage Taken 799 | . 133 84 269 127 186 Core 331 | . 78 59 111 18 65 Absorbed by Shields . | . . . . . . Redirected to Shielding 20 | . . . . . 20 Core Remaining (%) 83 | 100 68 85 79 . . Volleys Fired 3 | . . . 3 . . Largest 1 | . . . 1 . . Hottest 20 | . . . 20 . . Shots Fired 3 | . . . 3 . . Gun 3 | . . . 3 . . Cannon . | . . . . . . Launcher . | . . . . . . Special . | . . . . . . Kinetic 3 | . . . 3 . . Thermal . | . . . . . . Explosive . | . . . . . . Electromagnetic . | . . . . . . Robot Hit Streak 3 | . . . 3 . . Robot Miss Streak . | . . . . . . Penetration Max . | . . . . . . Secondary Targets . | . . . . . . Shots Hit Robots 5 | . . . 3 . 2 Core Hits 3 | . . . 1 . 2 Critical Kills . | . . . . . . Critical Parts Destroyed . | . . . . . . Critical Strikes . | . . . . . . Melee Attacks 5 | . . . . . 5 Impact . | . . . . . . Slashing 5 | . . . . . 5 Piercing . | . . . . . . Sneak Attacks . | . . . . . . Combat Hostiles . | . . . . . . Follow-up Attacks . | . . . . . . Damage Inflicted 108 | . . . 39 . 69 Guns 39 | . . . 39 . . Cannons . | . . . . . . Explosions . | . . . . . . Melee 69 | . . . . . 69 Ramming . | . . . . . . Kinetic 39 | . . . 39 . . Thermal . | . . . . . . Explosive . | . . . . . . Electromagnetic . | . . . . . . Impact . | . . . . . . Slashing 69 | . . . . . 69 Piercing . | . . . . . . Highest Corruption 2 | . . 2 . 2 2 Average Corruption 2 | . . 2 . 2 2 Corruption Purged . | . . . . . . Corruption Blocked . | . . . . . . Effects 2 | . . . . 2 . Message Errors 1 | . . . . 1 . Data Loss (minor) 1 | . . . . 1 . Overload Shots . | . . . . . . Overflow Damage . | . . . . . . Projectiles . | . . . . . . Explosions . | . . . . . . Melee . | . . . . . . Knockbacks . | . . . . . . Impact . | . . . . . . Kinetic . | . . . . . . Secondary . | . . . . . . Self-Inflicted Damage . | . . . . . . Shots . | . . . . . . Rammed . | . . . . . . Targets Rammed . | . . . . . . Kicked . | . . . . . . Crushed . | . . . . . . Highest Temperature 21 | . . . . 21 21 Average Temperature 8 | . . . . 9 7 Received Heat Transfer 330 | . 72 45 81 69 63 Siege Activations . | . . . . . . Robots Corrupted . | . . . . . . Combat Hostiles . | . . . . . . Parts Fried . | . . . . . . Impact Corruptions . | . . . . . . Robots Melted . | . . . . . . Combat Hostiles . | . . . . . . Parts Melted . | . . . . . . Heat Transferred . | . . . . . . Parts Sabotaged . | . . . . . . Parts Stolen . | . . . . . . Parts Stripped . | . . . . . . Power Chain Reactions . | . . . . . . Missiles Intercepted . | . . . . . . Alert | -11 -10 -9 -8 -7 -7 ------- Run | Scr Mat Mat Mat Fac Low Peak Influence 238 | . 30 69 119 238 . Initial 53 | . . 12 28 53 . Average 86 | . 17 37 74 146 . Maximum Alert Level 1 | . . . . 1 . Low Security (%) 88 | 100 100 100 100 70 . Level 1 11 | . . . . 29 . Level 2 . | . . . . . . Level 3 . | . . . . . . Level 4 . | . . . . . . Level 5 . | . . . . . . High Security . | . . . . . . Max Security . | . . . . . . Squads Dispatched 4 | . 2 . . 2 . Investigation 2 | . 1 . . 1 . Extermination . | . . . . . . Reinforcement 2 | . 1 . . 1 . Assault . | . . . . . . Garrison . | . . . . . . Intercept . | . . . . . . Searches Triggered . | . . . . . . Construction Impeded . | . . . . . . Haulers Reinforced . | . . . . . . Active Scanning Responses . | . . . . . . Cargo Convoy Interrupts . | . . . . . . Stealth | -11 -10 -9 -8 -7 -7 --------- Run | Scr Mat Mat Mat Fac Low Distress Signals 1 | . . . . 1 . Communications Jammed . | . . . . . . Distress Signals . | . . . . . . Times Spotted 42 | . 7 6 12 10 7 Peak Tracking Total 10 | . 6 6 10 6 7 Tactical Retreats 6 | . . . 1 2 3 Traps | -11 -10 -9 -8 -7 -7 ------- Run | Scr Mat Mat Mat Fac Low Traps Triggered 1 | . . 1 . . . Indirectly . | . . . . . . Trap Hack Attempts . | . . . . . . Triggered . | . . . . . . Disarmed . | . . . . . . Reprogrammed . | . . . . . . Reused . | . . . . . . Traps Extracted . | . . . . . . Installed . | . . . . . . Triggered . | . . . . . . Machines | -11 -10 -9 -8 -7 -7 ---------- Run | Scr Mat Mat Mat Fac Low Machines Disabled . | . . . . . . Max in Single Turn . | . . . . . . Machines Sabotaged . | . . . . . . Garrisons Compromised . | . . . . . . Overloaded Fab Kills . | . . . . . . Hacking | -11 -10 -9 -8 -7 -7 --------- Run | Scr Mat Mat Mat Fac Low Machines Accessed 10 | . 1 3 1 3 2 Terminals 7 | . 1 3 1 2 . Fabricators 1 | . . . . 1 . Repair Stations . | . . . . . . Recycling Units . | . . . . . . Scanalyzers . | . . . . . . Garrison Access . | . . . . . . Total Hacks 23 | . 2 10 3 6 2 Successful 12 | . . 5 2 3 2 Failed 11 | . 2 5 1 3 . Catastrophic 4 | . 1 2 1 . . Database Lockouts . | . . . . . . Manual 19 | . . 10 3 6 . Terminals 20 | . 2 10 3 5 . Fabricators 1 | . . . . 1 . Repair Stations . | . . . . . . Recycling Units . | . . . . . . Scanalyzers . | . . . . . . Garrison Access . | . . . . . . Terminal Hacks 5 | . . 2 1 . 2 Open Door 2 | . . . . . 2 Level Access Points 1 | . . 1 . . . Terminal Index 2 | . . 1 1 . . Fabricator Hacks . | . . . . . . Repair Station Hacks . | . . . . . . Recycling Unit Hacks . | . . . . . . Scanalyzer . | . . . . . . Garrison Access Hacks . | . . . . . . Unauthorized Hacks 7 | . . 3 1 3 . Terminals 6 | . . 3 1 2 . Assimilate 1 | . . . . 1 . Botnet 5 | . . 3 1 1 . Fabricators 1 | . . . . 1 . Overload 1 | . . . . 1 . Repair Stations . | . . . . . . Recycling Units . | . . . . . . Scanalyzers . | . . . . . . Garrison Access . | . . . . . . Data Cores Recovered . | . . . . . . Used . | . . . . . . Hacking Detections 6 | . 1 2 1 2 . Full Trace Events 1 | . 1 . . . . Feedback Events . | . . . . . . Feedback Blocked . | . . . . . . Robot Schematics Acquired . | . . . . . . Robots Built . | . . . . . . Authchips . | . . . . . . Time . | . . . . . . Total Robot Build Rating . | . . . . . . Part Schematics Acquired . | . . . . . . Parts Built . | . . . . . . Authchips . | . . . . . . Time . | . . . . . . Total Part Build Rating . | . . . . . . Parts Repaired . | . . . . . . Time . | . . . . . . Parts Recycled . | . . . . . . Recycled Matter . | . . . . . . Retrieved Matter . | . . . . . . Retrieved Components . | . . . . . . Parts Scanalyzed . | . . . . . . Part Schematics Acquired . | . . . . . . Parts Damaged . | . . . . . . Bothacking | -11 -10 -9 -8 -7 -7 ------------ Run | Scr Mat Mat Mat Fac Low Used RIF Installer . | . . . . . . Robots Hacked . | . . . . . . Non-combat . | . . . . . . Combat . | . . . . . . Robot Hacks Applied . | . . . . . . Relay Couplers Released . | . . . . . . Fabnet Peak Effective % . | . . . . . . Robots Rewired . | . . . . . . Allies Hacked . | . . . . . . Hacks Repelled . | . . . . . . Allies | -11 -10 -9 -8 -7 -7 -------- Run | Scr Mat Mat Mat Fac Low Total Allies 1 | . . . . 1 . Largest Group 1 | . . . . 1 . Highest-Rated Group 26 | . . . . 26 . Highest-Rated Ally 26 | . . . . 26 . Total Orders . | . . . . . . Ally Attacks . | . . . . . . Total Damage . | . . . . . . Kills . | . . . . . . Allies Corrupted . | . . . . . . Allies Melted . | . . . . . . Intel | -11 -10 -9 -8 -7 -7 ------- Run | Scr Mat Mat Mat Fac Low Robot Analysis Total . | . . . . . . Derelict Logs Recovered 1 | . . . . . 1 Drone Launches . | . . . . . . Drone Recoveries . | . . . . . . Exploration | -11 -10 -9 -8 -7 -7 ------------- Run | Scr Mat Mat Mat Fac Low Turns Passed 509 | 2 48 57 101 124 177 Spaces Moved 1247 | 2 89 112 198 322 524 Core 186 | 2 89 91 4 . . Treads . | . . . . . . Legs . | . . . . . . Wheels . | . . . . . . Hover . | . . . . . . Flight 1061 | . . 21 194 322 524 Fastest Speed 26 | 50 50 35 34 29 26 Average Speed 32 | 50 50 47 37 30 26 Slowest Speed 200 | 50 50 50 200 31 32 Overloaded Moves . | . . . . . . Propulsion Burnouts . | . . . . . . Robots Hopped 12 | . . . 6 6 . Cave-ins Triggered . | . . . . . . Exploration Rate (%) 26 | 1 37 28 20 9 61 Regions Visited 5 Branch Regions 1 Pre-discovered Areas . | . . . . . . Known Exits Taken 1 | . . 1 . . . Unknown Exits Taken 4 | 1 1 . 1 1 . Scrap Searched 4 | . . . . . 4 Spaces Dug . | . . . . . . Terrain Destroyed . | . . . . . . Melee . | . . . . . . Projectile . | . . . . . . AOE . | . . . . . . Terrain Rammed . | . . . . . . Walls Destroyed . | . . . . . . Machines Disabled . | . . . . . . Actions | -11 -10 -9 -8 -7 -7 --------- Run | Scr Mat Mat Mat Fac Low Total 1317 | 2 92 115 215 342 551 Wait 14 | . . . . 13 1 Move 1222 | 1 88 111 187 311 524 Hop 8 | . . . 4 4 . Pick Up 19 | . 1 1 7 4 6 Fast Attach 11 | 1 1 . 5 . 4 Attach 14 | . . 2 1 6 5 Detach 2 | . . . . 2 . Swap 4 | . . . . 1 3 Drop 15 | . 2 1 8 1 3 Fire 3 | . . . 3 . . Melee 5 | . . . . . 5 Ram . | . . . . . . Kick . | . . . . . . Crush . | . . . . . . Escape Stasis . | . . . . . . Rewire . | . . . . . . Trap . | . . . . . . Miscellaneous . | . . . . . . Route ------- -11/Scrapyard -10/Materials (discovered 2 exits: *Mat / [*Min]) -9/Materials (discovered 4 exits: *Mat x3 / [*Min]) -8/Materials -7/Factory -7/Lower Caves (discovered 1 exit: Low) History --------- Turn | Location | Event 1 | -11/Scrapyard | Released all parts (6) 1 | -11/Scrapyard | Discovered new exit (range 1) 3 | -11/Scrapyard | Entered Materials 24 | -10/Materials | Discovered new exit (range 11) 47 | -10/Materials | Discovered new exit (range 9) 51 | -10/Materials | Entered another Materials area 51 | -9/Materials | Evolved 2 slots: Utility x2 81 | -9/Materials | Identified exit to Materials 90 | -9/Materials | Discovered new exit (range 13) 108 | -9/Materials | Entered another Materials area 108 | -8/Materials | Evolved 2 slots: Utility x2 205 | -8/Materials | Discovered new exit (range 13) 209 | -8/Materials | Entered Factory 209 | -7/Factory | Evolved 2 slots: Propulsion x2 329 | -7/Factory | Discovered new exit (range 11) 333 | -7/Factory | Entered Lower Caves 335 | -7/Lower Caves | Identified exit to Lower Caves 356 | -7/Lower Caves | Attracted the attention of an 0b10 base 455 | -7/Lower Caves | Build established: Sprinter 510 | -7/Lower Caves | Self-destructed Last Messages --------------- 00412_ Current location identified: Lower Caves >>Open Door Sealed Heavy Doors opened. 00412_ Acquired Phase Shifter. 00414_ Dropped Mak. Spear. 00415_ Acquired Falx. 00416_ Acquired Phase Shifter. 00418_ Acquired Falx. 00487_ Searching scrap... 00487_ Found Imp. Sensor Array. 00487_ Found Carbon-fiber Leg. 00487_ Found Kinecellerator. 00487_ Found Matter Filter. 00487_ Found 23 Matter. 00488_ Acquired 23 matter. 00489_ Acquired 36 matter. 00505_ Connecting with WAR.Sys... >>Open Door Sealed Heavy Doors opened. 00507_ Connecting with WAR.Sys... Map ----- +----------------------------------------------------+ | ???????????????????????????????????????#####?## | | ???????????????????????????????????????# ### | | ???>???????????????????????????????????# ## | | ???????????????????????????????????????# #?# | | ??????????????????????????????????????## #?## | | ????????????????????????###???????????# #?## | | ?????????????????????# ## ??????????# ### | | ?????????????????????? ?????##???# | | ??????????????????????? ?????# ##### | | ????????????????????##?# ?##### | | ???????????????????## ## ## | | ???????????????????# ## ### | | ???????????????????# ????# #?# | | ????????????????????? ????# #?# | | ????????????????????### ####?# #?## | | ????????????????????? ## ### #??### # | | ??????????????????####### # #????## ## | | ?????????????????##"""""### #?????##### | | ?????????????????#"" X## ##???????### | | ????????????????##" ""## #?????####! | | ????????????????#""? ###"## #######?????# ! ! | | ????????????????#"M #X#### #???????????#=### | | ????????????????#"g g #???????????# #?# # | | ????????????????#"hl g ###### ##????????### ### # | | ????????????????#"" //## ##???????# | | ????????????????##"" @!## #???????# | | ?????????????????##"""""""## #??????## | | ??????????????????######### #??????# ! | | ????????????????????????? #?##### | | ???????????????????????? ## ##### | | ??????????????????????? ###??###??# ## | | ?????????????????????? ??????????# ## # | | ?????????????????????## ???????????### ###### | | ??????????????????????##??????????????## ##????? | | ???????????????????????????????????????#####?????? | | ?????????????????????????????????????????????????? | | ?????????????????????????????????????????????????? | | ?????????????????????????????????????????????????? | | ?????????????????????????????????????????????????? | | ?????????????????????????????????????????????????? | | ?????????????????????????????????????????????????? | | ?????????????????????????????????????????????????? | | ?????????????????????????????????????????????????? | | ?????????????????????????????????????????????????? | | ?????????????????????????????????????????????????? | | ?????????????????????????????????????????????????? | | ?????????????????????????????????????????????????? | | ?????????????????????????????????????????????????? | | ?????????????????????????????????????????????????? | | ?????????????????????????????????????????????????? | +----------------------------------------------------+ Best States ------------- Heat Dissipation 34 Energy Generation 14 Energy Capacity 250 Matter Stores 285 Matter Capacity 300 Sight Range 16 Robot Scan Range 15 Terrain Scan Density 10 Armor Coverage 600 Utility Shielding 66 Evasion (%) 64 Melee Accuracy 6 Offensive Hacking 10 Item Schematics ----------------- None Robot Schematics ------------------ None Fabricated ------------ Nothing Alien Tech Used ----------------- None Achievements -------------- None Challenges ------------ None Game ------ Seed HelicalCoreInterpreter Manual? 0 Play Time 00:19:02 Cumulative 146.8 hours Start 2022.05.01 @ 20:58:15 End 2022.05.01 @ 21:13:15 Sessions 1 Manual Loads 0 Difficulty Rogue Special Mode None Game No. 219 Rogue 218 Adventurer 0 Explorer 1 Win Type - Total 6 Types 6/0/0/0/0/0/0/0/0 Lore% 60 Gallery% 62 Achievement% 50 Wizard Run 0 Options --------- ASCII 1 Keyboard 0 Movement Vi Keybinds 0 Fullscreen 1 Font 18/SmallcapsGlow Map View 76x50 Tactical HUD 1 Map Filters NONE Filters NONE Steam 1 RUN: b8db937d-0a51-4731-8024-53584af5ebea